Cogmind - Beta 17 @@@ ROGUE MODE // 2026.07.19 @ 17:20:37 Player: rz Result: Destroyed by H3-12V(R) with Subdweller Beam Cannon Performance ------------- Evolutions (0) 0 Regions Visited (1) 200 Robots Destroyed (13) 65 Value Destroyed (146) 146 Prototype IDs (0) 0 Alien Tech Used (0) 0 Bonus (0) 0 TOTAL SCORE: 411 Bonus ------- None Cogmind --------- Core Integrity 0/250 Matter 263/300 Energy 80/125 System Corruption 1% Temperature Cool (65) Movement Treading (480) Ox4 Location -10/Materials Parts ------- > --- POWER (1) -------- Light Ion Engine > --- PROPULSION (2) --- Light Treads > --- UTILITY (2) ------ Huge Storage Unit Signal Interpreter > --- WEAPON (2) ------- Assault Rifle Light Assault Rifle > --- INVENTORY (25) --- Ion Engine Improved Aluminum Leg Improved Aluminum Leg Improved Aluminum Leg Improved Aluminum Leg Compact Wheel Compact Wheel Compact Wheel Compact Wheel High-capacity Matter Pod (200) Sensor Array Tractor Beam Light Assault Rifle Light Cannon Light Cannon Light Cannon Mining Claw Peak State ------------ > --- POWER ------------ Ion Engine > --- PROPULSION ------- Light Treads Light Treads > --- UTILITY ---------- Huge Storage Unit Signal Interpreter > --- WEAPON ----------- Light Assault Rifle Light Assault Rifle > --- INVENTORY -------- Ion Engine Light Ion Engine Improved Aluminum Leg Improved Aluminum Leg Improved Aluminum Leg Improved Aluminum Leg Compact Wheel Compact Wheel Compact Wheel Compact Wheel High-capacity Matter Pod Sensor Array Assault Rifle Light Assault Rifle Light Cannon Mining Claw [Rating: 9] Favorites ----------- Power Ion Engine Engine Ion Engine Propulsion Light Treads Treads Light Treads Utility Signal Interpreter Device Sensor Array Storage Large Storage Unit Processor Signal Interpreter Weapon Assault Rifle Ballistic Gun Assault Rifle Slashing Weapon Mining Claw Build | -11 -10 ------- Run | Yrd Mat Slots Evolved . | . . Power . | . . Propulsion . | . . Utility . | . . Weapon . | . . Parts Attached 16 | 6 10 Power 2 | 1 1 Engine 2 | 1 1 Core . | . . Reactor . | . . Propulsion 3 | 2 1 Treads 3 | 2 1 Leg . | . . Wheel . | . . Hover . | . . Flight . | . . Utility 5 | 1 4 Device 1 | . 1 Storage 3 | 1 2 Processor 1 | . 1 Hackware . | . . Protection . | . . Artifact . | . . Weapon 6 | 2 4 Energy Gun . | . . Energy Cannon . | . . Ballistic Gun 5 | 2 3 Ballistic Cannon . | . . Launcher . | . . Special Weapon . | . . Impact Weapon . | . . Slashing Weapon 1 | . 1 Piercing Weapon . | . . Special Melee Weapon . | . . Unidentified Prototypes . | . . Parts Lost 6 | . 6 Power 1 | . 1 Propulsion 2 | . 2 Utility . | . . Weapon 3 | . 3 Highest Loss Streak 5 | . 5 To Critical Strikes . | . . Average Backups 10 | 1 10 Power 1 | . 1 Propulsion 4 | . 5 Utility 1 | . 1 Weapon 2 | . 2 Tool/Special . | . . Unused Backups 14 | . 14 Power 1 | . 1 Propulsion 8 | . 8 Utility 1 | . 1 Weapon 4 | . 4 Tool/Special . | . . Average Slot Usage (%) 96 | . 96 Engine 14 | . 14 Treads 27 | . 27 Storage 14 | . 14 Processor 10 | . 10 Ballistic Gun 26 | . 26 Slashing Weapon 1 | . 1 Peak Build Rating 9 | 6 9 Average Rating 7 | 4 7 On Entrance 3 | . 6 Avg Prop Armor Cover (%) . | . . Naked Turns . | . . Heaviest Build 87 | 14 87 Greatest Support 40 | 40 40 Greatest Overweight (x) 2 | . 2 Average Overweight (x) . | . . Largest Inventory Capacity 25 | 8 25 Average Capacity 13 | 7 14 Most Carried 21 | 5 21 Average Carried 10 | 1 10 Final Capacity 25 | 8 25 Final Carried 17 | 1 17 Class Distribution -------------------- 100% | Mutant Dominant Class ---------------- Mutant | -10/Materials Resources | -11 -10 ----------- Run | Yrd Mat Matter Collected 697 | 187 510 Remotely . | . . Salvage Created 274 | . 274 Parts 31 | . 31 Haulers Intercepted 1 | . 1 Recyclers Shooed 1 | . 1 Parts Field Recycled . | . . Retrieved Matter . | . . Parts Self-Destructed . | . . Prevented . | . . Parts Restored . | . . Kills | -11 -10 ------- Run | Yrd Mat Combat Hostiles Destroyed 10 | . 10 Guns 10 | . 10 Classes Destroyed 4 | . 4 Builder 2 | . 2 Hauler 1 | . 1 Swarmer 9 | . 9 Grunt 1 | . 1 Best Kill Streak 4 | . 4 Combat Bots Only 3 | . 3 Max Kills in Single Turn 2 | . 2 Gunslinging 1 | . 1 Exploded . | . . Melee . | . . Uniques/NPCs Destroyed . | . . Combat | -11 -10 -------- Run | Yrd Mat Hostile Shots Fired 111 | . 111 Missed 31 | . 31 Hits 80 | . 80 Projectile 80 | . 80 Critical Strikes 2 | . 2 Damage Taken 955 | . 955 Core 266 | . 266 Absorbed by Shields . | . . Core Remaining (%) 100 | 100 . Volleys Fired 57 | . 57 Largest 2 | . 2 Hottest 40 | . 40 Shots Fired 108 | . 108 Gun 108 | . 108 Cannon . | . . Launcher . | . . Special . | . . Kinetic 108 | . 108 Thermal . | . . Explosive . | . . Electromagnetic . | . . Robot Hit Streak 8 | . 8 Robot Miss Streak 5 | . 5 Penetration Max . | . . Secondary Targets 2 | . 2 Max Gunslinging Chain 1 | . 1 Shots Hit Robots 64 | . 64 Core Hits 25 | . 25 Critical Kills . | . . Critical Parts Destroyed . | . . Critical Strikes . | . . Melee Attacks 1 | . 1 Impact . | . . Slashing 1 | . 1 Piercing . | . . Sneak Attacks . | . . Combat Hostiles . | . . Follow-up Attacks . | . . Damage Inflicted 663 | . 663 Guns 663 | . 663 Cannons . | . . Explosions . | . . Melee . | . . Ramming . | . . Kinetic 663 | . 663 Thermal . | . . Explosive . | . . Electromagnetic . | . . Impact . | . . Slashing . | . . Piercing . | . . Highest Corruption 1 | . 1 Average Corruption 1 | . 1 Corruption Purged . | . . Corruption Blocked . | . . Effects 7 | . 7 Message Errors 1 | . 1 Energy Discharges 1 | . 1 Data Loss (minor) 4 | . 4 Data Loss (major) 1 | . 1 Overload Shots . | . . Overflow Damage . | . . Projectiles . | . . Explosions . | . . Melee . | . . Knockbacks . | . . Impact . | . . Kinetic . | . . Secondary . | . . Self-Inflicted Damage . | . . Shots . | . . Rammed . | . . Targets Rammed . | . . Kicked . | . . Crushed . | . . Highest Temperature 279 | . 279 Average Temperature 139 | . 139 Received Heat Transfer 404 | . 404 Effects 1 | . 1 Energy Bleed 1 | . 1 Siege Activations . | . . Martial Activations . | . . Shielding Activations . | . . Robots Disrupted . | . . Combat Hostiles . | . . Robots Corrupted . | . . Combat Hostiles . | . . Parts Fried . | . . Impact Corruptions . | . . Robots Melted . | . . Combat Hostiles . | . . Parts Melted . | . . Heat Transferred . | . . Parts Sabotaged . | . . Parts Stolen . | . . Parts Stripped . | . . Power Chain Reactions . | . . Alert | -11 -10 ------- Run | Yrd Mat Maximum Alert Level . | . . Low Security (%) 100 | 100 100 Level 1 . | . . Level 2 . | . . Level 3 . | . . Level 4 . | . . Level 5 . | . . High Security . | . . Max Security . | . . Peak Influence 82 | . 82 Initial . | . . Average 23 | . 24 Influence Increases 288 | . 288 Destroy 0b10 Robot/C 200 | . 200 Destroy 0b10 Robot/NC 15 | . 15 Destroy Leader 42 | . 42 Disable Machine 15 | . 15 Destroy Structure 1 | . 1 Lose Combat Pursuer 15 | . 15 Influence Decreases 288 | . 288 Time Decay 249 | . 249 Lost Part 39 | . 39 Squads Dispatched 1 | . 1 Investigation . | . . Extermination . | . . Reinforcement 1 | . 1 Assault . | . . Garrison . | . . Intercept . | . . Searches Triggered . | . . Construction Impeded . | . . Haulers Reinforced . | . . Active Scanning Responses . | . . Cargo Convoy Interrupts . | . . Stealth | -11 -10 --------- Run | Yrd Mat Distress Signals 1 | . 1 Communications Jammed . | . . Distress Signals . | . . Times Spotted 20 | . 20 Peak Tracking Total 5 | . 5 Tactical Retreats 1 | . 1 Traps | -11 -10 ------- Run | Yrd Mat Traps Triggered 1 | . 1 Indirectly . | . . Trap Hack Attempts . | . . Triggered . | . . Disarmed . | . . Reprogrammed . | . . Reused . | . . Traps Extracted . | . . Installed . | . . Triggered . | . . Machines | -11 -10 ---------- Run | Yrd Mat Machines Disabled 1 | . 1 Max in Single Turn 1 | . 1 Machines Repaired . | . . Machines Dismantled . | . . Machines Sabotaged . | . . Overloaded Fab Kills . | . . Hacking | -11 -10 --------- Run | Yrd Mat Machines Accessed 1 | . 1 Terminals . | . . Fabricators . | . . Repair Stations . | . . Recycling Units 1 | . 1 Scanalyzers . | . . Garrison Access . | . . Total Hacks 1 | . 1 Successful 1 | . 1 Failed . | . . Catastrophic . | . . Database Lockouts . | . . Manual . | . . Terminals . | . . Fabricators . | . . Repair Stations . | . . Recycling Units 1 | . 1 Scanalyzers . | . . Garrison Access . | . . Terminal Hacks . | . . Fabricator Hacks . | . . Repair Station Hacks . | . . Recycling Unit Hacks 1 | . 1 Retrieve Components 1 | . 1 Scanalyzer . | . . Garrison Access Hacks . | . . Unauthorized Hacks . | . . Terminals . | . . Fabricators . | . . Repair Stations . | . . Recycling Units . | . . Scanalyzers . | . . Garrison Access . | . . Data Cores Recovered . | . . Used . | . . Hacking Detections . | . . Full Trace Events . | . . Feedback Events . | . . Feedback Blocked . | . . Robot Schematics Acquired . | . . Robots Built . | . . Authchips . | . . Time . | . . Total Robot Build Rating . | . . Part Schematics Acquired . | . . Parts Built . | . . Authchips . | . . Time . | . . Total Part Build Rating . | . . Part Studies Acquired . | . . Parts Repaired . | . . Time . | . . Parts Recycled . | . . Recycled Matter . | . . Retrieved Matter . | . . Retrieved Components 3 | . 3 Parts Scanalyzed . | . . Part Schematics Acquired . | . . Parts Damaged . | . . Bothacking | -11 -10 ------------ Run | Yrd Mat Used RIF Installer . | . . Robots Hacked . | . . Non-combat . | . . Combat . | . . Robot Hacks Applied . | . . Relay Couplers Released . | . . Fabnet Peak Effective % . | . . Robots Rewired . | . . Allies Hacked . | . . Hacks Repelled . | . . Allies | -11 -10 -------- Run | Yrd Mat Total Allies . | . . Largest Group . | . . Highest-Rated Group . | . . Highest-Rated Ally . | . . Total Orders . | . . Ally Attacks . | . . Total Damage . | . . Kills . | . . Allies Corrupted . | . . Allies Melted . | . . Intel | -11 -10 ------- Run | Yrd Mat Active Infowar (turns) 74 | . 74 Sensors 74 | . 74 Robot Analysis Total . | . . Derelict Logs Recovered . | . . Drone Launches . | . . Drone Recoveries . | . . Exploration | -11 -10 ------------- Run | Yrd Mat Turns Passed 1204 | 55 1149 Spaces Moved 542 | 35 507 Core 11 | 11 . Treads 531 | 24 507 Legs . | . . Wheels . | . . Hover . | . . Flight . | . . Fastest Speed 50 | 50 160 Average Speed 170 | 125 173 Slowest Speed 320 | 160 320 Overloaded Moves . | . . Propulsion Burnouts . | . . Robots Hopped . | . . Potential Cave-ins . | . . Cave-ins Triggered . | . . Exploration Rate (%) 43 | 4 82 Regions Visited 1 Branch Regions . Pre-discovered Areas . | . . Known Exits Taken . | . . Unknown Exits Taken 1 | 1 . Scrap Searched . | . . Spaces Dug . | . . Terrain Destroyed . | . . Melee . | . . Projectile . | . . AOE . | . . Terrain Rammed . | . . Walls Destroyed . | . . Machines Disabled . | . . Actions | -11 -10 --------- Run | Yrd Mat Total 726 | 46 680 Wait 82 | . 82 Move 541 | 34 507 Hop . | . . Pick Up 26 | 6 20 Fast Attach 3 | 1 2 Attach 9 | 5 4 Detach . | . . Swap 5 | . 5 Drop 2 | . 2 Fire 57 | . 57 Melee 1 | . 1 Ram . | . . Kick . | . . Crush . | . . Escape Stasis . | . . Rewire . | . . Trap . | . . Miscellaneous . | . . Route ------- -11/Scrapyard -10/Materials (discovered 4 exits: *Mat x2 / *Min x2) History --------- Turn | Location | Event 2 | -11/Scrapyard | Met Revision 17 31 | -11/Scrapyard | Discovered new exit (range 15) 56 | -11/Scrapyard | Entered Materials 82 | -10/Materials | Discovered new exit (range 16) 159 | -10/Materials | Discovered new exit (range 12) 313 | -10/Materials | Build established: Mutant 360 | -10/Materials | Identified exit to Mines 545 | -10/Materials | Discovered new exit (range 16) 819 | -10/Materials | Discovered new exit (range 5) 823 | -10/Materials | Identified exit to Materials 1056 | -10/Materials | Derelicts attacked the area 1177 | -10/Materials | Core integrity fell below 50% 1203 | -10/Materials | Core integrity fell below 20% 1205 | -10/Materials | Destroyed by H3-12V(R) with Subdweller Beam Cannon Last Messages --------------- 01112_ K-01 Serf collects debris. 01123_ A-02 Transporter destroyed. 01126_ K-01 Serf collects debris. 01130_ System corrupted: Component data lost. 01132_ K-01 Serf collects debris. 01148_ Acquired Lgt. Treads. 01152_ Acquired Tractor Beam. 01153_ Acquired 24 matter. 01154_ System corrupted: Component data lost. 01173_ K-01 Serf destroyed. 01178_ Critical hit (Meltdown: +290). 01182_ Overheating: Energy bleed (-35). 01184_ K-01 Serf cleans the Fusion Modulator. 01190_ K-01 Serf collects debris. 01192_ Lgt. Assault Rifle destroyed. 01195_ K-01 Serf collects debris. 01198_ Lgt. Treads destroyed. 01200_ U-05 Engineer builds a Wall. 01201_ Ion Engine destroyed. 01201_ Lgt. Treads destroyed. Map ----- +----------------------------------------------------+ | | | | | ?????????????????????????????????????????????????? | | ?????????????????????????????????###########?????? | | ?????????????????????????????##### # #?????? | | ????????????????????????????? # ####### | | ##???????????????????????????# | | ########???????????########?# # ### | | # #???????????# ########### #?# | | # """ ####????????# # #??######+#####+## | | # """ # +????" ?# """ # #??# ## | | # """ + #???"" ??# """ # #??# ## | | # # +?? ??# """ + #??# + | | # ??# #? """???# # #??# ## | | ##+##### # """ ??######## #??# ## | | # """ #??????# #??############### | | " #??????# #????????# ??# | | ####????????????# #????????# """ ## | | #???????????????# #????????# """ # | | """ """ *#???????????????# #????????# """ + | | """ """=%#???????????????# #????????# # | | """ """ !#???????????????# #????????# # | | ##??????????????# #?????########+## | | !#?????????????##= #?????# | | *=#########;######t! #?????# | | ### |! %* *!! @ #?????# | | ############!= !%! u ########+########## | | #???# = ! R k + #### | | """ #???# RR #### """"""" + + | | R" #???# #??# """"""" #### " | | """ #???# """ ##### #??# """"""" #??# " | | #???# ! """ #???# #??# """"""" #??# " | | #???# """ #???# #??# """"""" #??# | | ##+####??# #???# #??# #??### | | #??# #???# #??# ] #????? | | < #??# ###########?### ##?######+#######?? | | #??# #??????????#" #?????# ! #?? | | ### #??# #??????????#"" #?????# ! #?? | | # #??# #??????????#!! #?????# #?? | | # #??# #??????????#"" > #?????# #?? | | # #### #??????????#|| #?????# #?? | | # # ????????"" #?????# #?? | | += + ???????? #?????# #?? | | #= T #?????????????# #??????# #?? | | # """ #????????###### #??????# #?? | | # """ #????????# ###########/##### | | # """ #????????# | | ### #????????# ####### | | ### #????????# ######?????# | | !## """ #????????# #??????#####+####### ## | +----------------------------------------------------+ Best States ------------- Heat Dissipation 25 Energy Generation 10 Energy Capacity 250 Matter Stores 300 Matter Capacity 300 Sight Range 16 Robot Scan Range 14 Terrain Scan Density 10 Evasion (%) 50 Recoil Reduction 2 Item Schematics ----------------- None Robot Schematics ------------------ None Fabricated ------------ Nothing Repaired ---------- Nothing Studied --------- None Alien Tech Used ----------------- None Achievements -------------- None Challenges ------------ None Game ------ Seed AnalysisUtilityMegatreads Manual? 0 Play Time 00:10:17 Cumulative 96.6 hours Start 2026.07.19 @ 16:50:02 End 2026.07.19 @ 17:20:37 Sessions 1 Manual Loads 0 Difficulty Rogue Special Mode None Game No. 108 Rogue 54 Adventurer 54 Explorer 0 Win Type - Total 2 Types 2/0/0/0/0/0/0/0/0/0 Lore% 44 Gallery% 47 Achievement% 43 Wizard Run 0 Options --------- Layout 1 ASCII 0 Keyboard 0 Movement Mouse Keybinds 1 Fullscreen 1 Font 32/Tamsyn Map View 50x35 Zoom Use 0% Tactical HUD 1 Map Filters NONE Filters NONE Steam 1 RUN: c0b0fa25-c13e-49b9-9564-87855f5d1ac7